bitfinex/quotes_ETHUSD_20250411
["timestamp","ask_amount","ask_price","bid_price","bid_amount"]
[1744408977240,6.3583,1572.8,1572.5,0.0205024]
[1744408977554,12.7167,1572.8,1572.5,0.0205024]
[1744408977749,6.35853,1572.7,1572.5,0.0205024]
[1744408978249,12.71642,1572.8,1572.5,0.0205024]
[1744408978457,6.446,1572.9,1572.6,6.3588]
[1744408978656,6.446,1572.9,1572.6,6.42239011]
[1744408978822,12.8038,1572.9,1572.6,6.3588]
[1744408980265,6.35889,1572.6,1572.5,0.0205024]
[1744408985344,7.11199,1572.6,1572.5,0.0205024]
[1744408990942,26.97115336,1572.6,1572.5,2.4e-06]
[1744408991279,20.28015336,1572.6,1572.5,2.4e-06]
[1744408992249,16.18199,1572.6,1572.5,2.4e-06]
[1744408992579,19.071927,1572.6,1572.5,2.4e-06]
[1744408993885,23.17009036,1572.6,1572.5,2.4e-06]
[1744408999159,72.77009036,1572.6,1572.5,2.4e-06]
[1744409001193,79.46109036,1572.6,1572.5,2.4e-06]
[1744409001893,83.55925372,1572.6,1572.5,2.4e-06]
[1744409002474,79.46109036,1572.6,1572.5,2.4e-06]
[1744409004214,79.46109036,1572.6,1571.7,0.816]
[1744409004215,6.36213,1571.8,1571.7,0.816]
[1744409004510,6.36294,1571.6,1571.5,0.816]
[1744409005796,6.36253,1571.7,1571.5,0.816]
[1744409005994,6.36294,1571.6,1571.5,0.816]
[1744409006819,6.36446,1571.3,1571.2,1.30078459]
[1744409006999,6.36395,1571.4,1571.3,0.8181]
[1744409007000,6.449,1571.4,1571.3,0.8181]
[1744409007169,6.36346,1571.5,1571.3,0.8181]
[1744409007368,56.4595,1571.8,1571.7,0.8181]
[1744409007369,6.07,1571.8,1571.7,0.8181]
[1744409007602,19.17316,1571.9,1571.7,0.8181]
[1744409007805,12.81108,1571.9,1571.7,0.8181]
[1744409008008,12.81108,1571.9,1571.7,1.536192]
[1744409008175,12.81087,1571.9,1571.7,1.536192]
[1744409010522,19.17289,1571.9,1571.7,1.536192]
[1744409010721,12.81087,1571.9,1571.7,1.536192]
[1744409011389,6.449,1571.9,1571.8,0.7809]
[1744409011589,6.449,1571.9,1571.8,1.5670392]
[1744409014329,6.449,1572.2,1571.9,0.7809]
[1744409014527,6.36109,1572.1,1571.9,0.7809]
[1744409014902,12.72215,1572.1,1571.9,0.7809]
[1744409015436,6.36132,1572.0,1571.9,0.7809]
[1744409015809,12.72235,1572.1,1571.9,0.7809]
[1744409018207,6.36132,1572.0,1571.9,0.7809]
[1744409018633,6.36132,1572.0,1571.8,0.7809]
[1744409019534,6.36175,1571.9,1571.8,0.7809]
[1744409022064,13.48391,1571.9,1571.7,3.47597318]
[1744409022233,13.48391,1571.9,1571.3,7.19228]
[1744409022234,6.36284,1571.7,1571.3,7.19228]
[1744409022440,6.36284,1571.7,1571.4,7.19212]
[1744409022637,6.36284,1571.7,1571.4,13.55586]
[1744409022838,6.36284,1571.7,1571.4,15.266446]
[1744409023362,6.36284,1571.7,1571.4,19.5207844]
[1744409023961,6.447,1571.8,1571.7,7.11303]
[1744409024330,12.80916,1571.8,1571.6,0.7505]
[1744409024526,6.447,1571.8,1571.6,0.7505]
[1744409024832,6.447,1571.8,1571.6,8.03668697]
[1744409025161,6.447,1571.8,1571.6,14.39961697]
[1744409025959,6.447,1571.8,1571.7,6.36253]
[1744409026163,6.447,1571.8,1571.6,14.39936697]
[1744409026364,6.447,1571.8,1571.6,14.39934697]
[1744409026922,6.447,1571.8,1571.3,10.6183784]
[1744409027161,6.36295,1571.6,1571.4,3.0]
[1744409028652,6.447,1571.8,1571.3,4.2543384]
[1744409028653,13.49612,1571.5,1571.3,4.2543384]
[1744409028828,12.81075,1571.4,1571.3,4.2543384]
[1744409029862,12.81075,1571.4,1571.2,4.2543384]
[1744409029863,19.1748,1571.4,1571.2,4.2543384]
[1744409030156,6.36415,1571.3,1571.2,4.2543384]
[1744409030864,8.28164,1571.3,1571.2,4.2543384]
[1744409031232,6.36415,1571.3,1571.2,4.2543384]
[1744409032767,19.17467,1571.4,1571.2,4.2543384]
[1744409033567,6.36415,1571.3,1571.2,4.2543384]
[1744409034091,6.36415,1571.3,1571.1,0.05]
[1744409035477,19.17489,1571.4,1571.1,6.41491]
[1744409035686,19.17471,1571.4,1571.2,0.7933]
[1744409036259,19.17471,1571.4,1571.1,6.41491]
[1744409036260,6.36456,1571.2,1571.1,0.05]
[1744409038495,7.15356,1571.2,1571.1,0.05]
[1744409041107,6.36456,1571.2,1571.1,0.05]
[1744409042068,6.36436,1571.3,1571.1,0.05]
[1744409042269,6.449,1571.3,1571.2,0.7527]
[1744409046329,12.81315,1571.3,1571.2,0.7527]
[1744409048411,6.36456,1571.2,1571.1,0.05]
[1744409052039,7.12246,1571.2,1571.1,0.05]
[1744409053551,6.36638,1570.8,1570.6,0.7607]
[1744409053752,6.448,1570.8,1570.6,7.12759]
[1744409053954,6.448,1570.8,1570.6,0.7607]
[1744409054161,12.81442,1570.8,1570.6,0.7607]
[1744409054459,19.18086,1570.8,1570.6,0.7607]
[1744409054755,6.36658,1570.7,1570.6,0.7607]
[1744409055122,6.36709,1570.6,1570.5,0.7977]
[1744409056068,7.640469,1570.6,1570.5,0.7977]
[1744409056367,6.3678,1570.4,1570.3,4.2543384]
[1744409058947,6.36844,1570.3,1570.1,4.94586336]
[1744409059140,6.36861,1570.2,1570.1,4.94586336]
[1744409059871,6.36861,1570.2,1570.1,0.8477]
[1744409060178,12.73701,1570.3,1570.1,0.8477]
[1744409060483,12.8169,1570.4,1570.1,0.8477]
[1744409060652,6.449,1570.4,1570.2,12.737]
[1744409060853,6.449,1570.4,1570.2,6.3685]
[1744409061277,6.36861,1570.2,1570.1,0.05]
[1744409061574,1.208752,1570.2,1570.1,0.875]
[1744409061775,6.36861,1570.2,1570.1,0.875]
[1744409062075,6.36837,1570.3,1570.1,0.875]
[1744409062242,6.36861,1570.2,1570.1,0.875]
[1744409062636,6.36861,1570.2,1570.1,0.05]
[1744409063847,7.16751,1570.2,1570.1,0.05]
[1744409064695,6.36861,1570.2,1570.1,0.05]
[1744409064843,6.36836,1570.3,1570.1,1.26393384]
[1744409065179,6.36861,1570.2,1570.1,0.8335]
[1744409065782,12.73691,1570.3,1570.1,0.8335]
[1744409065982,12.81692,1570.4,1570.1,0.8335]
[1744409066180,6.449,1570.4,1570.1,7.2024]
[1744409066348,12.81682,1570.4,1570.1,14.70135634]
[1744409066549,12.81682,1570.4,1570.1,8.33245634]
[1744409066787,12.81682,1570.4,1570.1,14.70134634]
[1744409067080,12.81682,1570.4,1570.1,8.33244634]
[1744409067300,12.81682,1570.4,1570.1,14.70135634]
[1744409067493,6.449,1570.4,1570.2,6.36829]
[1744409067647,12.73349,1570.7,1570.3,7.1517]
[1744409067852,12.818,1570.6,1570.3,13.51972]
[1744409068705,6.36751,1570.5,1570.2,6.36849]
[1744409069105,6.36751,1570.5,1570.2,12.73699]
[1744409069403,6.36751,1570.5,1570.3,1.273699]
[1744409069557,12.73515,1570.5,1570.3,1.273699]
[1744409069762,6.36751,1570.5,1570.2,12.73699]
[1744409070002,6.36751,1570.5,1570.2,12.73698]
[1744409071085,12.73513,1570.5,1570.2,6.36849]
[1744409071288,6.36782,1570.4,1570.2,3.0]
[1744409072100,13.49527,1570.5,1570.2,3.0]
[1744409072612,12.81812,1570.6,1570.3,7.1516]
[1744409073021,6.451,1570.6,1570.4,6.36771]
[1744409073174,6.451,1570.6,1570.4,12.73538]
[1744409073520,6.451,1570.6,1570.4,12.73536]
[1744409073893,6.451,1570.6,1570.4,6.36767]
[1744409074104,6.451,1570.6,1570.4,13.450477]
[1744409074618,6.451,1570.6,1570.5,6.36739]
[1744409074778,6.451,1570.6,1570.4,13.450477]
[1744409075512,6.451,1570.6,1570.4,13.450467]
[1744409075691,6.451,1570.6,1570.4,7.082787]
[1744409075895,6.451,1570.6,1570.5,0.8173]
[1744409076089,6.451,1570.6,1570.5,7.18469]
[1744409076301,6.451,1570.6,1570.5,0.8173]
[1744409076919,6.451,1570.6,1570.5,7.18469]
[1744409078843,49.638,1570.9,1570.6,6.91683]
[1744409079000,56.089,1570.9,1570.7,7.18377]
[1744409079628,62.45488,1570.9,1570.7,0.8173]
[1744409080831,56.089,1570.9,1570.7,7.18383]
[1744409081002,56.089,1570.9,1570.8,6.36618]
[1744409081894,12.72858,1571.3,1570.9,7.17644]
[1744409082095,6.36471,1571.2,1570.9,0.8108]
[1744409082295,12.81428,1571.3,1570.9,7.17652]
[1744409082496,12.81428,1571.3,1571.0,6.36521]
[1744409083775,6.45,1571.3,1571.1,6.36486]
[1744409084066,6.45,1571.3,1571.1,12.72971]
[1744409084729,6.448,1571.4,1571.2,13.53975]
[1744409084928,56.099,1571.6,1571.4,6.36346]
[1744409085137,5.0,1571.7,1571.5,6.36309]
[1744409085556,6.36215,1571.8,1571.5,12.72632]
[1744409085759,13.5803,1571.9,1571.5,12.72632]
[1744409086379,13.5803,1571.9,1571.6,7.18801]
[1744409086380,12.8099,1571.9,1571.6,7.18801]
[1744409086534,6.448,1571.9,1571.6,7.18793]
[1744409086740,6.448,1571.9,1571.6,0.8251]
[1744409086970,12.72493,1571.8,1571.5,0.8251]
[1744409087746,12.80981,1571.9,1571.5,7.25205757]
[1744409087943,56.00722,1572.3,1571.9,0.8251]
[1744409088144,68.81453,1572.3,1571.9,7.18679]
[1744409088453,62.45422,1572.3,1571.9,14.322079]
[1744409088860,62.45422,1572.3,1572.0,6.36131]
[1744409089179,62.45422,1572.3,1572.0,6.36127]
[1744409089482,56.094,1572.3,1572.1,6.36059]
[1744409089647,56.094,1572.3,1572.0,13.2724]
[1744409089843,56.094,1572.3,1572.1,1.32724]
[1744409090764,56.094,1572.3,1572.1,7.68813]
[1744409090992,6.35937,1572.5,1572.2,7.15588]
[1744409090993,6.445,1572.5,1572.2,7.15588]
[1744409091187,6.445,1572.5,1572.3,6.35989]
[1744409092391,6.445,1572.5,1572.4,6.3597]
[1744409092888,12.71732,1572.7,1572.4,7.631659]
[1744409093065,55.98762,1573.0,1572.5,7.15486]
[1744409093066,6.35815,1572.8,1572.5,7.15486]
[1744409093486,6.35784,1572.9,1572.5,13.51412]
[1744409093705,12.71589,1572.9,1572.5,13.51412]
[1744409094021,7.12748,1573.1,1572.7,6.35819]
[1744409094022,6.35705,1573.1,1572.7,6.35819]
[1744409094178,6.35705,1573.1,1572.8,1.185819]
[1744409094513,6.35705,1573.1,1572.8,7.543879]
[1744409094718,12.71407,1573.1,1572.8,7.543879]
[1744409094907,6.35702,1573.1,1572.8,13.901939]
[1744409096006,6.35702,1573.1,1572.8,14.37782731]
[1744409096420,6.35702,1573.1,1572.9,1.43778273]
[1744409096919,6.443,1573.3,1573.0,6.35725]
[1744409097233,12.79909,1573.3,1573.0,13.50739]
[1744409097924,6.443,1573.3,1573.1,6.90685]
[1744409098229,6.443,1573.3,1573.1,13.2636]
[1744409098386,0.05,1573.4,1573.3,6.90606]
[1744409098580,0.05,1573.4,1573.3,7.69916]
[1744409099942,0.05,1573.4,1573.3,10.69916]
[1744409101508,0.05,1573.4,1573.3,10.76270416]
[1744409101727,0.05,1573.4,1573.3,14.30712177]
[1744409101949,1e-05,1573.4,1573.3,14.30712177]
[1744409102856,12.79152,1574.2,1573.9,0.55]
[1744409103064,6.439,1574.2,1574.1,0.55]
[1744409103261,6.439,1574.2,1574.1,1.240301]
[1744409103422,55.99972,1574.4,1574.1,14.758261]
[1744409103623,62.35151,1574.4,1574.1,8.405431]
[1744409104026,6.35205,1574.3,1574.1,2.052601]
[1744409104239,49.648,1574.4,1574.0,0.47378608]
[1744409104444,12.70532,1574.2,1574.0,0.55]
[1744409105134,6.35284,1574.1,1573.9,3.8123]
[1744409105474,6.35338,1574.0,1573.8,3.55]
[1744409105825,12.79092,1574.1,1573.8,9.90397]
[1744409106025,6.35385,1573.9,1573.7,0.8123]
[1744409106274,6.35409,1573.8,1573.6,3.0]
[1744409106575,0.8007,1573.9,1573.3,15.61306531]
[1744409106779,6.35498,1573.6,1573.3,7.16829]
[1744409107071,6.35498,1573.6,1573.3,7.16822]
[1744409107238,6.35498,1573.6,1573.3,13.99247341]
[1744409107440,6.35498,1573.6,1573.4,0.55]
[1744409107976,12.70913,1573.7,1573.4,6.96918814]
[1744409108177,12.70913,1573.7,1573.4,8.42975929]
[1744409108480,12.70919,1573.7,1573.4,8.42975929]
[1744409108638,12.7092,1573.7,1573.4,8.42975929]
[1744409108867,6.35452,1573.7,1573.4,8.42969871]
[1744409109098,6.35414,1573.8,1573.5,6.35514]
[1744409109301,7.15444,1573.9,1573.6,0.55]
[1744409109596,6.35334,1574.0,1573.6,0.55]
[1744409109597,6.35334,1574.0,1573.8,0.55]
[1744409111916,6.35244,1574.2,1573.9,1.3259]
[1744409112612,14.187961,1574.0,1573.4,1.46057115]
[1744409112919,6.35529,1573.5,1573.3,4.24420341]
[1744409113210,6.35529,1573.5,1573.3,1.24420341]
[1744409113612,6.35566,1573.4,1573.2,1.32636]
[1744409113818,6.35406,1573.8,1572.8,7.13389]
[1744409113819,6.35661,1573.2,1572.8,7.13389]
[1744409114120,6.35741,1573.0,1572.8,0.7759]
[1744409114710,6.35694,1573.1,1572.8,0.7759]
[1744409115028,12.71418,1573.1,1572.8,0.7759]
[1744409115216,6.35731,1573.0,1572.8,1.489327]
[1744409116523,12.71475,1573.0,1572.8,1.489327]
[1744409116696,12.71476,1573.0,1572.8,0.713427]
[1744409117702,6.35731,1573.0,1572.8,0.713427]
[1744409118798,12.71476,1573.0,1572.8,0.713427]
[1744409119003,12.71482,1573.0,1572.8,0.713427]
[1744409119204,6.35768,1572.9,1572.6,4.3274]
[1744409119418,6.35824,1572.8,1572.6,4.3274]
[1744409119740,12.71652,1572.8,1572.6,4.3274]
[1744409120117,6.35824,1572.8,1572.6,4.3274]
[1744409120447,12.7165,1572.8,1572.5,0.55]
[1744409120639,6.35824,1572.8,1572.5,8.37103]
[1744409120830,12.71668,1572.8,1572.5,8.37103]
[1744409121564,6.35824,1572.8,1572.5,8.43461287]
[1744409121957,6.35824,1572.8,1572.5,2.07556287]
[1744409122157,6.35824,1572.8,1572.5,2.01198]
[1744409122360,6.434,1573.2,1572.8,6.35798]
[1744409122361,13.61993,1573.2,1572.8,6.35798]
[1744409122544,13.61993,1573.2,1572.6,4.3506]
[1744409122545,6.35768,1572.9,1572.6,4.3506]
[1744409122747,12.71655,1572.8,1572.6,1.3506]
[1744409123059,6.3582,1572.8,1572.6,1.3506]
[1744409123558,12.71642,1572.8,1572.6,1.3506]
[1744409123880,6.3582,1572.8,1572.5,8.28890971]
[1744409124167,6.3582,1572.8,1572.6,0.82889097]
[1744409124367,6.3582,1572.8,1572.5,4.46198]
[1744409124530,6.3582,1572.8,1572.5,10.88463453]
[1744409124731,6.3596,1572.5,1572.1,6.36073]
[1744409125054,6.35889,1572.6,1572.3,6.36]
[1744409125568,6.35889,1572.6,1572.3,12.78359413]
[1744409126467,6.436,1572.7,1572.5,6.35926]
[1744409126766,0.7971,1572.9,1572.6,7.544596]
[1744409126932,13.59091,1572.9,1572.6,7.544596]
[1744409127133,13.59091,1572.9,1572.6,7.6081761]
[1744409127370,13.59091,1572.9,1572.6,13.9669561]
[1744409127611,13.59091,1572.9,1572.6,13.903376]
[1744409127768,13.59091,1572.9,1572.7,1.3903376]
[1744409129871,13.59091,1572.9,1572.6,6.90867]
[1744409130182,19.9488,1572.9,1572.6,6.90867]
[1744409130581,13.59091,1572.9,1572.6,6.90867]
[1744409131893,0.39151629,1572.8,1572.6,6.90867]
[1744409132258,6.3583,1572.8,1572.5,6.83057668]
[1744409132583,6.35889,1572.6,1572.5,4.70156467]
[1744409132744,12.71803,1572.6,1572.4,0.8254]
[1744409132947,0.39223911,1572.5,1572.4,1.3754]
[1744409133195,0.39223911,1572.5,1572.4,0.55]
[1744409133590,13.11140911,1572.5,1572.3,3.0]
[1744409133789,6.75171911,1572.5,1572.3,3.06359397]
[1744409134198,6.75171911,1572.5,1572.3,3.0]
[1744409134373,6.75171911,1572.5,1572.3,2.2639394]
[1744409134711,6.35948,1572.5,1572.3,0.55]
[1744409134895,6.35872,1572.7,1572.4,12.71929]
[1744409135069,6.35872,1572.7,1572.4,6.3596]
[1744409135267,6.35872,1572.7,1572.4,12.71917]
[1744409135268,6.35863,1572.7,1572.4,12.71917]
[1744409135590,0.791,1572.8,1572.5,7.69468612]
[1744409135789,12.79381,1572.9,1572.6,6.35885]
[1744409135982,19.15177,1572.9,1572.6,6.35885]
[1744409136383,12.79381,1572.9,1572.6,6.35876]
[1744409136704,19.15163,1572.9,1572.6,6.35876]
[1744409136908,12.79381,1572.9,1572.7,0.635876]
[1744409137109,6.436,1572.9,1572.7,6.994246]
[1744409137275,12.79372,1572.9,1572.7,0.635876]
[1744409137608,19.15167,1572.9,1572.7,0.635876]
[1744409137903,12.79372,1572.9,1572.7,0.635876]
[1744409138105,6.436,1572.9,1572.8,6.35808]
[1744409138313,12.79452,1573.2,1572.8,2.6937416]
[1744409138619,12.79452,1573.2,1572.9,13.26497]
[1744409138800,13.56023,1573.5,1573.2,6.35637]
[1744409139020,6.438,1573.5,1573.2,6.35637]
[1744409139325,6.438,1573.5,1573.4,0.55]
[1744409139533,6.438,1573.5,1573.4,7.60260948]
[1744409139732,6.438,1573.8,1573.5,12.71024]
[1744409139890,6.438,1573.8,1573.4,1.50544948]
[1744409140095,6.35525,1573.5,1573.2,0.7991]
[1744409140290,6.35525,1573.5,1573.3,0.55]
[1744409140910,6.35525,1573.5,1573.3,0.61355403]
[1744409141340,6.35426,1573.8,1573.5,6.35525]
[1744409141518,6.35446,1573.7,1573.3,15.28874263]
[1744409141717,6.35414,1573.8,1573.5,0.55]
[1744409141921,12.70842,1573.8,1573.5,0.61354355]
[1744409142092,12.70842,1573.8,1573.5,0.55]
[1744409142297,12.70841,1573.8,1573.5,0.55]
[1744409142647,12.70852,1573.8,1573.5,1.39343043]
[1744409143394,12.70852,1573.8,1573.5,1.45697398]
[1744409143599,12.70852,1573.8,1573.5,1.39343043]
[1744409144447,6.3545,1573.7,1573.5,1.39343043]
[1744409144655,6.35485,1573.6,1573.5,1.39343043]
[1744409145019,12.79026,1574.0,1573.7,0.55]
[1744409145214,6.437,1574.0,1573.8,0.06353692]
[1744409145623,6.437,1574.0,1573.8,6.41755692]
[1744409145951,6.35293,1574.1,1573.8,6.41755692]
[1744409146672,6.35293,1574.1,1573.8,6.41743692]
[1744409146886,6.35293,1574.1,1573.8,7.82650331]
[1744409147089,0.3749192,1574.0,1573.8,7.82650331]
[1744409147937,0.3749192,1574.0,1573.9,7.68744]
[1744409148173,63.18984,1574.3,1573.9,17.04108]
[1744409148372,0.37557999,1574.2,1574.1,0.55]
[1744409149081,0.37557999,1574.2,1574.1,1.24032]
[1744409149246,0.37557999,1574.2,1574.1,7.6566693]
[1744409149651,6.35226,1574.3,1574.1,1.24032]
[1744409149960,0.34769766,1574.2,1574.1,1.24032]
[1744409150159,0.34769766,1574.2,1574.1,0.55]
[1744409153381,0.34843982,1574.2,1574.1,0.55]
[1744409153566,13.52113,1574.4,1574.1,0.55]
[1744409153764,0.34877015,1574.3,1574.1,0.55]
[1744409154373,6.70093015,1574.3,1574.1,0.55]
[1744409155776,6.70093015,1574.3,1574.2,7.67493]
[1744409155777,0.34877015,1574.3,1574.2,7.67493]
[1744409155941,0.05,1574.4,1574.3,0.55]
[1744409156258,0.37321496,1574.4,1574.3,6.90202]
[1744409156466,0.05,1574.4,1574.3,6.90202]
[1744409156679,0.34462899,1574.4,1574.3,9.239938]
[1744409158344,0.34462899,1574.4,1574.3,2.337918]
[1744409158537,0.34462899,1574.4,1574.3,3.0]
[1744409158743,0.34462899,1574.4,1574.3,3.55]
[1744409159792,0.34462899,1574.4,1574.1,0.990312]
[1744409159972,6.35214,1574.3,1574.1,3.0]
[1744409160345,0.29499905,1574.2,1574.1,3.0]
[1744409160546,0.29499905,1574.2,1574.1,3.55]
[1744409160747,6.64754905,1574.2,1573.8,8.59182639]
[1744409160951,6.64754905,1574.2,1574.0,3.0]
[1744409162051,13.00019905,1574.2,1574.0,3.0]
[1744409163396,6.64754905,1574.2,1574.0,3.0]
[1744409163861,13.00013905,1574.2,1574.0,3.0]
[1744409164059,6.64754905,1574.2,1574.0,3.0]
[1744409164589,6.64754905,1574.2,1573.9,7.27632915]
[1744409164590,7.11121,1574.1,1573.8,0.55]
[1744409164786,0.29330759,1574.0,1573.8,6.90393]
[1744409165086,6.64660759,1574.0,1573.8,0.55]
[1744409165314,6.35364,1573.9,1573.8,0.55]
[1744409165718,0.29291987,1573.9,1573.4,6.35552]
[1744409166013,12.70956,1573.7,1573.4,7.47475335]
[1744409166423,0.29192825,1573.6,1573.4,7.47475335]
[1744409166578,0.29192825,1573.6,1573.5,0.06354452]
[1744409166917,6.35447,1573.7,1573.5,0.55]
[1744409167115,0.29192825,1573.6,1573.5,1.35247534]
[1744409168517,0.29192825,1573.6,1573.5,7.77126992]
[1744409168713,0.29192825,1573.6,1573.5,13.36093888]
[1744409169032,6.3538,1573.9,1573.7,0.55]
[1744409169384,6.35378,1573.9,1573.7,0.55]
[1744409169584,6.35378,1573.9,1573.5,12.81082888]
[1744409169585,6.35455,1573.7,1573.5,1.61887534]
[1744409169785,6.35497,1573.6,1573.4,4.11923335]
[1744409170314,6.35525,1573.5,1573.4,1.11923335]
[1744409170483,6.35485,1573.6,1573.1,5.66551354]
[1744409170683,6.35555,1573.5,1573.2,3.0]
[1744409170903,12.71006,1573.6,1573.3,6.35602]
[1744409171095,6.35492,1573.6,1573.3,6.35602]
[1744409171305,12.71014,1573.6,1573.3,6.35602]
[1744409171619,6.35606,1573.3,1573.2,3.0]
[1744409171802,12.71157,1573.4,1573.1,0.8287]
[1744409172118,12.71157,1573.4,1573.2,0.55]
[1744409173525,6.35606,1573.3,1573.2,0.55]
[1744409174630,12.7117,1573.4,1573.2,0.55]
[1744409174832,12.7117,1573.4,1573.2,1.323545]
[1744409175406,12.71176,1573.4,1573.2,1.323545]
[1744409177229,0.28515027,1573.3,1573.2,1.323545]
[1744409177524,6.64121027,1573.3,1573.2,1.323545]
[1744409177729,6.35606,1573.3,1573.2,1.323545]
[1744409177894,6.64121027,1573.3,1573.2,1.323545]
[1744409182031,6.64121027,1573.3,1573.2,0.55]
[1744409183300,0.28515027,1573.3,1573.2,0.55]
[1744409183499,12.71163,1573.4,1573.2,0.55]
[1744409183808,6.63914727,1573.3,1573.2,0.55]
[1744409184126,12.71426,1573.1,1572.9,4.09526184]
[1744409184427,0.2820949,1573.0,1572.9,7.80478802]
[1744409184631,6.6393649,1573.0,1572.9,7.80478802]
[1744409184834,6.35824,1572.8,1572.6,4.2543384]
[1744409185031,6.35849,1572.7,1572.6,4.2543384]
[1744409185203,6.63804442,1572.7,1572.6,4.2543384]
[1744409185403,6.35905,1572.6,1572.4,3.0]
[1744409185613,0.8145,1572.8,1572.5,11.00425184]
[1744409185817,13.60582,1573.0,1572.7,6.35838]
[1744409186016,13.60582,1573.0,1572.7,6.42195932]
[1744409186331,7.2485,1573.0,1572.8,6.35806]
[1744409186534,6.434,1573.0,1572.8,12.71601]
[1744409186743,0.8145,1573.2,1572.9,15.332561]
[1744409187148,0.8145,1573.2,1572.9,19.42782284]
[1744409187441,0.8145,1573.2,1572.9,15.332561]
[1744409187944,62.35118,1573.3,1573.0,6.3572]
[1744409188148,62.35118,1573.3,1573.1,0.63572]
[1744409188720,55.995,1573.3,1573.1,6.99247]
[1744409188924,62.35106,1573.3,1573.1,0.63572]
[1744409189244,62.35109,1573.3,1573.1,0.63572]
[1744409189545,55.995,1573.3,1573.1,7.0561248]
[1744409189731,6.434,1573.3,1573.2,0.70561248]
[1744409192143,6.6921443,1573.3,1573.2,0.70561248]
[1744409199415,0.2581443,1573.3,1573.2,0.70561248]
[1744409199615,7.17019,1573.4,1573.2,0.70561248]
[1744409199815,0.25745638,1573.3,1573.2,0.70561248]
[1744409200016,7.17019,1573.4,1573.2,0.70561248]
[1744409200217,0.25745638,1573.3,1573.2,0.70561248]
[1744409200418,7.17019,1573.4,1573.2,0.70561248]
[1744409200751,0.25745638,1573.3,1573.2,0.70561248]
[1744409201073,7.17019,1573.4,1573.2,0.70561248]
[1744409201352,0.25745638,1573.3,1573.2,0.70561248]
[1744409202050,13.526,1573.4,1573.2,0.70561248]
[1744409202276,0.25745638,1573.3,1573.2,0.70561248]
[1744409202624,13.526,1573.4,1573.2,0.70561248]
[1744409202834,0.25745638,1573.3,1573.2,0.70561248]
[1744409203041,13.526,1573.4,1573.2,0.70561248]
[1744409203251,0.25745638,1573.3,1573.2,0.70561248]
[1744409204086,13.526,1573.4,1573.2,0.70561248]
[1744409204275,0.25745638,1573.3,1573.2,0.70561248]
[1744409204673,13.526,1573.4,1573.2,0.70561248]
[1744409204861,0.25745638,1573.3,1573.2,0.70561248]
[1744409205058,6.61351638,1573.3,1573.2,0.70561248]
[1744409205263,13.52606,1573.4,1572.9,13.26498862]
[1744409205264,6.35698,1573.1,1572.9,1.271601]
[1744409205436,6.35698,1573.1,1573.0,0.55]
[1744409205642,6.61452017,1573.1,1573.0,0.55]
[1744409205842,6.61452017,1573.1,1572.9,1.271601]
[1744409206470,0.25754017,1573.1,1573.0,3.55]
[1744409206775,13.5422,1573.2,1573.0,4.6679141]
[1744409206966,0.25708152,1573.1,1573.0,4.6679141]
[1744409207284,6.35687,1573.1,1573.0,4.6679141]
[1744409207582,6.61395152,1573.1,1573.0,4.6679141]
[1744409207747,6.61395152,1573.1,1573.0,4.1179141]
[1744409207950,6.35741,1573.0,1572.9,3.0]
[1744409208183,0.8289,1572.9,1572.8,4.25347388]
[1744409208344,7.18658,1572.9,1572.8,4.25347388]
[1744409208546,7.44248376,1572.9,1572.8,4.25347388]
[1744409210399,6.35808,1572.8,1572.7,4.25347388]
[1744409210700,19.14814,1573.1,1572.8,7.33342739]
[1744409210985,19.14805,1573.1,1572.8,7.33342739]
[1744409211189,19.14802,1573.1,1572.8,7.33342739]
[1744409211365,12.79101,1573.1,1572.9,0.73334274]
[1744409211693,19.14817,1573.1,1572.9,0.73334274]
[1744409211878,19.14807,1573.1,1572.9,0.73334274]
[1744409212081,12.79101,1573.1,1572.9,0.73334274]
[1744409212281,19.14822,1573.1,1572.9,0.73334274]
[1744409212479,19.14822,1573.1,1572.8,7.33341739]
[1744409214054,12.79101,1573.1,1572.8,7.33331739]
[1744409214252,12.79101,1573.1,1572.8,13.69127739]
[1744409215495,6.434,1573.1,1573.0,6.35727]
[1744409215688,6.434,1573.1,1573.0,1.35932623]
[1744409218087,12.79087,1573.1,1572.8,11.91294597]
[1744409218260,12.79087,1573.1,1572.8,7.81423714]
[1744409218693,19.14809,1573.1,1572.8,7.81423714]
[1744409219360,12.79087,1573.1,1572.8,14.17219714]
[1744409220362,6.434,1573.1,1573.0,7.72197]
[1744409220572,6.434,1573.1,1573.0,9.54615111]
[1744409221899,6.68884529,1573.1,1573.0,9.54615111]
[1744409222996,6.68884529,1573.1,1573.0,3.18888111]
[1744409223198,13.04571529,1573.1,1572.9,4.09870883]
[1744409223406,12.71473,1573.0,1572.8,5.97446102]
[1744409223561,6.35727,1573.0,1572.8,5.97446102]
[1744409223757,6.61249436,1572.9,1572.8,4.25347388]
[1744409224302,7.43889436,1572.9,1572.8,4.25347388]
[1744409226204,7.43889436,1572.9,1572.8,3.88e-06]
[1744409226363,20.60760319,1572.9,1572.8,3.88e-06]
[1744409226902,6.3597,1572.4,1572.3,3.88e-06]
[1744409227074,13.6257,1572.4,1572.3,3.88e-06]
[1744409227404,13.87438463,1572.4,1572.3,3.88e-06]
[1744409228299,6.68368463,1572.4,1572.3,4.09871271]
[1744409228507,6.68368463,1572.4,1572.3,12.32461798]
[1744409228666,6.68368463,1572.4,1572.3,5.96451798]
[1744409230265,13.04338463,1572.4,1572.3,3.88e-06]
[1744409230900,13.04338463,1572.4,1572.1,11.25825883]
[1744409231201,13.04338463,1572.4,1572.1,17.61904883]